bitfinex/quotes_BTCUSD_20240629
["timestamp","ask_amount","ask_price","bid_price","bid_amount"]
[1719675426530,1.001752,61105.0,61098.0,0.19910346]
[1719675426734,0.0769,61099.0,61098.0,0.19910346]
[1719675432156,0.0769,61099.0,61098.0,0.20002746]
[1719675435873,0.0769,61099.0,61098.0,0.22002746]
[1719675437025,0.0769,61099.0,61098.0,0.20002746]
[1719675437600,0.12159094,61099.0,61098.0,0.20002746]
[1719675438001,0.12159094,61099.0,61098.0,0.22002746]
[1719675438268,0.12159094,61099.0,61098.0,0.20002746]
[1719675440068,0.12159094,61099.0,61098.0,0.000924]
[1719675444240,0.34609094,61099.0,61098.0,0.000924]
[1719675445468,0.35009094,61099.0,61098.0,0.000924]
[1719675445912,0.35409094,61099.0,61098.0,0.000924]
[1719675446112,0.18500003,61099.0,61089.0,0.000924]
[1719675446331,0.2245,61091.0,61089.0,0.000924]
[1719675448502,0.2245,61091.0,61082.0,0.20444971]
[1719675448745,0.2245,61091.0,61083.0,0.16065389]
[1719675448951,0.2285,61091.0,61084.0,0.1]
[1719675449155,0.0769,61085.0,61084.0,0.26233898]
[1719675451441,0.0779,61085.0,61084.0,0.26233898]
[1719675452472,0.0779,61085.0,61084.0,0.25759877]
[1719675452865,0.0769,61085.0,61084.0,0.25759877]
[1719675453270,0.0779,61085.0,61084.0,0.25759877]
[1719675453877,0.03949882,61099.0,61089.0,0.02]
[1719675454100,0.0769,61090.0,61089.0,0.02]
[1719675454302,0.0769,61090.0,61086.0,0.1161]
[1719675454504,0.16233898,61105.0,61091.0,0.02]
[1719675454862,0.0769,61092.0,61091.0,0.02]
[1719675454985,1.630138,61092.0,61091.0,0.02]
[1719675455181,0.0769,61092.0,61091.0,0.02]
[1719675456044,0.0769,61092.0,61091.0,0.03050787]
[1719675456450,0.0769,61092.0,61087.0,0.1]
[1719675456668,0.0769,61088.0,61087.0,0.1]
[1719675457547,0.0769,61088.0,61087.0,0.12]
[1719675459760,0.1184,61094.0,61093.0,0.02]
[1719675459976,0.457478,61094.0,61093.0,0.02]
[1719675460167,0.348995,61094.0,61092.0,0.2082]
[1719675460408,0.0170188,61096.0,61095.0,0.02]
[1719675460574,0.7654188,61096.0,61095.0,0.02]
[1719675460787,0.5964778,61096.0,61095.0,0.02]
[1719675461714,0.53179,61096.0,61095.0,0.02]
[1719675462642,0.513747,61096.0,61095.0,0.02]
[1719675463005,0.521747,61096.0,61095.0,0.02]
[1719675464069,0.521747,61096.0,61094.0,0.02]
[1719675464232,0.853542,61095.0,61093.0,0.02]
[1719675464452,0.0769,61095.0,61094.0,0.02]
[1719675465749,0.982734,61095.0,61094.0,0.02]
[1719675466152,0.905834,61095.0,61094.0,0.02]
[1719675466327,0.531134,61095.0,61094.0,0.02]
[1719675466530,0.451683,61095.0,61092.0,0.2082]
[1719675466874,0.358968,61094.0,61092.0,0.2082]
[1719675468730,0.147091,61094.0,61092.0,0.2082]
[1719675468929,0.20683,61094.0,61093.0,0.02]
[1719675469206,0.0769,61095.0,61094.0,0.02]
[1719675469391,0.0839,61095.0,61094.0,0.02]
[1719675469595,0.0769,61095.0,61094.0,0.02]
[1719675469794,0.0839,61095.0,61094.0,0.02]
[1719675470338,0.0769,61095.0,61094.0,0.02]
[1719675470557,0.0839,61095.0,61094.0,0.02]
[1719675470767,0.33573,61095.0,61094.0,0.02]
[1719675471794,0.33573,61095.0,61092.0,0.2082]
[1719675471999,0.437777,61094.0,61092.0,0.2082]
[1719675472984,0.102315,61094.0,61093.0,0.02]
[1719675473207,0.179215,61094.0,61093.0,0.02]
[1719675473403,0.179215,61094.0,61092.0,0.2082]
[1719675473739,0.0769,61094.0,61093.0,0.02]
[1719675473951,0.0819,61094.0,61093.0,0.02]
[1719675474124,1.415759,61094.0,61093.0,0.02]
[1719675474331,1.410759,61094.0,61093.0,0.02]
[1719675474538,1.42777718,61094.0,61093.0,0.02]
[1719675474901,1.43277718,61094.0,61092.0,0.01]
[1719675475157,0.09891818,61094.0,61092.0,0.02]
[1719675475703,0.0819,61094.0,61092.0,0.02]
[1719675476096,0.1943,61094.0,61092.0,0.02]
[1719675476349,0.1943,61094.0,61091.0,0.000924]
[1719675476549,0.42023,61093.0,61091.0,0.000924]
[1719675476753,0.868886,61092.0,61091.0,0.000924]
[1719675476996,0.848886,61092.0,61091.0,0.000924]
[1719675477350,0.86590418,61092.0,61091.0,0.000924]
[1719675478456,0.87090418,61092.0,61091.0,0.000924]
[1719675480031,0.87590418,61092.0,61091.0,0.000924]
[1719675480338,0.83394418,61092.0,61091.0,0.000924]
[1719675481791,0.816926,61092.0,61091.0,0.000924]
[1719675482008,0.83394344,61092.0,61091.0,0.000924]
[1719675483065,0.83394344,61092.0,61091.0,0.00085407]
[1719675484253,0.2540238,61092.0,61091.0,0.00085407]
[1719675484459,0.463386,61092.0,61091.0,0.00085407]
[1719675484655,0.213035,61092.0,61091.0,0.02085407]
[1719675485037,0.213035,61092.0,61085.0,0.30309758]
[1719675485267,0.0769,61086.0,61085.0,0.30309758]
[1719675485691,0.0769,61086.0,61085.0,0.32309758]
[1719675485923,0.0769,61086.0,61085.0,0.30309758]
[1719675487625,0.0769,61086.0,61085.0,0.30509758]
[1719675488003,0.0769,61086.0,61085.0,0.30809758]
[1719675488206,0.04556037,61096.0,61085.0,0.34941382]
[1719675488578,0.1124,61101.0,61091.0,0.1193]
[1719675488782,0.1124,61101.0,61092.0,0.0863]
[1719675489000,0.0769,61093.0,61092.0,0.0863]
[1719675489378,0.0769,61093.0,61092.0,0.1063]
[1719675491123,0.0789,61093.0,61092.0,0.1063]
[1719675491516,0.0779,61093.0,61092.0,0.1063]
[1719675491711,0.0799,61093.0,61092.0,0.1063]
[1719675491848,0.0809,61093.0,61092.0,0.1063]
[1719675492891,0.0789,61093.0,61092.0,0.1063]
[1719675493332,0.0799,61093.0,61092.0,0.1063]
[1719675494253,0.0789,61093.0,61092.0,0.1063]
[1719675494465,0.0799,61093.0,61092.0,0.1063]
[1719675494825,0.0779,61093.0,61092.0,0.1063]
[1719675495023,0.0779,61093.0,61092.0,0.1168052]
[1719675495427,0.0789,61093.0,61092.0,0.1168052]
[1719675495852,0.0779,61093.0,61092.0,0.1168052]
[1719675496237,0.0789,61093.0,61092.0,0.1168052]
[1719675498745,0.0789,61093.0,61092.0,0.0968052]
[1719675499171,0.0789,61093.0,61092.0,0.0305052]
[1719675499371,0.0789,61093.0,61092.0,0.0105052]
[1719675499578,0.0789,61093.0,61092.0,0.0305052]
[1719675499783,0.0779,61093.0,61092.0,0.0105052]
[1719675499995,0.0789,61093.0,61092.0,0.0105052]
[1719675500182,0.0789,61093.0,61092.0,0.02]
[1719675500472,0.0789,61093.0,61092.0,0.0305052]
[1719675501200,0.0779,61093.0,61092.0,0.0305052]
[1719675501420,0.07874,61093.0,61092.0,0.0305052]
[1719675502378,0.07974,61093.0,61092.0,0.0305052]
[1719675502573,0.07974,61093.0,61092.0,0.0105052]
[1719675502784,0.07974,61093.0,61092.0,0.0305052]
[1719675503012,0.07974,61093.0,61092.0,0.0105052]
[1719675503257,0.07974,61093.0,61092.0,0.0305052]
[1719675504209,0.07974,61093.0,61092.0,0.0105052]
[1719675504424,0.07974,61093.0,61092.0,0.0305052]
[1719675504558,0.07974,61093.0,61089.0,0.2116]
[1719675504762,0.00284,61093.0,61092.0,0.0105052]
[1719675504968,0.07974,61093.0,61089.0,0.2116]
[1719675505182,0.00284,61093.0,61092.0,0.0105052]
[1719675505359,0.07974,61093.0,61089.0,0.2116]
[1719675505563,0.00284,61093.0,61092.0,0.0105052]
[1719675505763,0.07974,61093.0,61090.0,0.0032735]
[1719675505966,0.00284,61093.0,61092.0,0.0105052]
[1719675506174,0.07874,61093.0,61091.0,0.01050787]
[1719675506372,0.07874,61093.0,61092.0,0.0105052]
[1719675506856,0.07874,61093.0,61089.0,0.21487356]
[1719675506970,0.0769,61090.0,61089.0,0.21487356]
[1719675507178,0.0769,61090.0,61089.0,0.2116]
[1719675507405,0.0769,61090.0,61089.0,0.22211322]
[1719675508724,0.0769,61090.0,61089.0,0.24211322]
[1719675508905,0.0769,61090.0,61089.0,0.24511322]
[1719675510238,0.0769,61090.0,61089.0,0.24811322]
[1719675511284,0.0769,61090.0,61089.0,0.24211322]
[1719675520462,0.0769,61090.0,61089.0,0.22211322]
[1719675521076,0.0769,61090.0,61089.0,0.22311322]
[1719675521640,0.0769,61090.0,61089.0,0.22211322]
[1719675521836,0.0769,61090.0,61089.0,0.22411322]
[1719675522047,0.0769,61090.0,61089.0,0.22511322]
[1719675522859,0.0769,61090.0,61089.0,0.24511322]
[1719675523270,0.0769,61090.0,61089.0,0.24838679]
[1719675523474,0.0769,61090.0,61089.0,0.25838679]
[1719675523702,0.0769,61090.0,61089.0,0.25538679]
[1719675523872,0.0769,61090.0,61089.0,0.25838679]
[1719675524078,0.0769,61090.0,61089.0,0.26138679]
[1719675524281,0.0769,61090.0,61089.0,0.25811322]
[1719675524681,0.0769,61090.0,61089.0,0.24811322]
[1719675527615,0.0769,61090.0,61089.0,0.22811322]
[1719675530579,0.0769,61090.0,61089.0,0.24811322]
[1719675532000,0.00401287,61098.0,61094.0,0.02]
[1719675532210,0.0769,61095.0,61094.0,0.02]
[1719675534221,0.0849,61095.0,61094.0,0.02]
[1719675535149,0.129,61095.0,61093.0,0.02]
[1719675535342,0.0769,61094.0,61093.0,0.02]
[1719675536200,0.0769,61094.0,61091.0,0.02]
[1719675536420,0.0769,61092.0,61091.0,0.02]
[1719675539230,0.0769,61092.0,61091.0,0.03045129]
[1719675543112,0.0769,61092.0,61091.0,0.01045129]
[1719675543516,0.0769,61092.0,61091.0,0.02]
[1719675543720,0.0769,61092.0,61091.0,0.03045129]
[1719675546711,0.0769,61092.0,61091.0,0.01045129]
[1719675546917,0.0769,61092.0,61089.0,0.2116]
[1719675547116,0.0769,61092.0,61091.0,0.02]
[1719675547297,0.0769,61092.0,61091.0,0.1392]
[1719675548323,0.0779,61092.0,61091.0,0.1392]
[1719675548653,0.0769,61092.0,61091.0,0.1392]
[1719675548995,0.0779,61092.0,61091.0,0.1392]
[1719675549319,0.0769,61092.0,61091.0,0.1392]
[1719675550515,0.0769,61092.0,61091.0,0.14965129]
[1719675550946,0.0769,61092.0,61091.0,0.15065129]
[1719675553988,0.0769,61092.0,61091.0,0.12965129]
[1719675554385,0.0769,61092.0,61091.0,0.13065129]
[1719675555447,0.0769,61092.0,61091.0,0.12583061]
[1719675555746,0.0769,61092.0,61091.0,0.12483061]
[1719675556059,0.0799,61092.0,61091.0,0.14483061]
[1719675558758,0.0799,61092.0,61091.0,0.12483061]
[1719675559230,0.0799,61092.0,61091.0,0.01045129]
[1719675560007,0.0799,61092.0,61087.0,0.3152]
[1719675560233,0.0799,61092.0,61091.0,0.01045129]
[1719675560234,0.002,61092.0,61091.0,0.01045129]
[1719675560460,0.0789,61092.0,61090.0,0.02]
[1719675560761,0.0779,61092.0,61091.0,0.01045129]
[1719675560965,0.0799,61092.0,61090.0,0.02]
[1719675561090,0.0799,61092.0,61091.0,0.01045129]
[1719675561336,0.0799,61092.0,61090.0,0.02]
[1719675561501,0.0799,61092.0,61091.0,0.01045129]
[1719675561706,0.0799,61092.0,61090.0,0.02]
[1719675561905,0.0799,61092.0,61091.0,0.01045129]
[1719675562111,0.0779,61092.0,61090.0,0.02]
[1719675562321,0.0769,61092.0,61091.0,0.01045129]
[1719675562523,0.0779,61092.0,61090.0,0.02]
[1719675562726,0.0779,61092.0,61091.0,0.01045129]
[1719675562891,0.0799,61092.0,61090.0,0.02]
[1719675563092,0.0799,61092.0,61091.0,0.01045129]
[1719675563319,0.0799,61092.0,61091.0,0.02]
[1719675563523,0.0799,61092.0,61091.0,0.03045129]
[1719675563718,0.0789,61092.0,61091.0,0.03045129]
[1719675564093,0.0789,61092.0,61091.0,0.01045129]
[1719675564290,0.0789,61092.0,61091.0,0.02]
[1719675564493,0.0789,61092.0,61091.0,0.03045129]
[1719675565201,0.0799,61092.0,61091.0,0.03045129]
[1719675565408,0.0779,61092.0,61091.0,0.03045129]
[1719675565537,0.0789,61092.0,61091.0,0.03045129]
[1719675565938,0.0799,61092.0,61091.0,0.03045129]
[1719675568626,0.0799,61092.0,61091.0,0.01045129]
[1719675568848,0.0799,61092.0,61091.0,0.03045129]
[1719675569084,0.0799,61092.0,61091.0,0.02]
[1719675569291,0.0799,61092.0,61091.0,0.03045129]
[1719675570053,0.08074,61092.0,61091.0,0.03045129]
[1719675571033,0.08074,61092.0,61091.0,0.01045129]
[1719675571438,0.08074,61092.0,61090.0,0.02]
[1719675571636,0.08074,61092.0,61091.0,0.01045129]
[1719675572068,0.08074,61092.0,61090.0,0.02]
[1719675572217,0.08074,61092.0,61091.0,0.01045129]
[1719675572423,0.07774,61092.0,61091.0,0.01045129]
[1719675572625,0.07774,61092.0,61090.0,0.02]
[1719675572826,0.08074,61092.0,61091.0,0.01045129]
[1719675573225,0.08074,61092.0,61088.0,0.02]
[1719675573432,0.00084,61092.0,61091.0,0.01045129]
[1719675573655,0.07774,61092.0,61088.0,0.02]
[1719675573886,0.0769,61089.0,61088.0,0.02]
[1719675575828,0.0769,61089.0,61087.0,0.3152]
[1719675576064,0.0769,61089.0,61088.0,0.02]
[1719675576269,0.0769,61089.0,61088.0,0.0304593]
[1719675576490,0.0769,61089.0,61088.0,0.0324593]
[1719675576701,0.0769,61089.0,61088.0,0.0354593]
[1719675576910,0.0769,61089.0,61088.0,0.0334593]
[1719675577317,0.0769,61089.0,61088.0,0.0304593]
[1719675578843,0.0779,61089.0,61088.0,0.0304593]
[1719675579198,0.0799,61089.0,61088.0,0.0304593]
[1719675582087,0.0799,61089.0,61088.0,0.1456593]
[1719675582427,0.0799,61089.0,61088.0,0.2145593]
[1719675584174,0.0799,61089.0,61088.0,0.2345593]
[1719675586821,0.003,61089.0,61088.0,0.2345593]
[1719675587027,0.0799,61089.0,61088.0,0.2345593]
[1719675588076,0.0789,61089.0,61088.0,0.2345593]
[1719675588278,0.0769,61089.0,61088.0,0.2345593]
[1719675588804,0.0789,61089.0,61088.0,0.2345593]
[1719675589504,0.0799,61089.0,61088.0,0.2345593]
[1719675599176,0.0799,61089.0,61088.0,0.2145593]
[1719675599377,0.1088,61089.0,61088.0,0.0104593]
[1719675599580,0.1088,61089.0,61085.0,0.000924]
[1719675599581,0.0799,61089.0,61085.0,0.000924]
[1719675599786,0.0769,61086.0,61085.0,0.000924]
[1719675600067,2.594309,61086.0,61085.0,0.000924]
[1719675600224,2.659909,61086.0,61085.0,0.000924]
[1719675600434,2.61734584,61086.0,61085.0,0.000924]
[1719675602222,2.61734584,61086.0,61085.0,0.002924]
[1719675602591,2.61734584,61086.0,61074.0,0.533096]
[1719675602592,2.75077931,61086.0,61075.0,0.194]
[1719675602796,0.0769,61076.0,61071.0,0.194924]
[1719675602987,1.539153,61075.0,61074.0,0.02]
[1719675603203,0.0769,61075.0,61074.0,0.02]
[1719675603395,1.701088,61075.0,61074.0,0.02]
[1719675603606,1.260629,61075.0,61074.0,0.02]
[1719675604383,0.95334025,61075.0,61074.0,0.02]
[1719675604584,0.01700154,61075.0,61074.0,0.02]
[1719675604918,0.89718154,61075.0,61074.0,0.02]
[1719675605137,0.47060054,61075.0,61074.0,0.02]
[1719675605387,0.47160054,61075.0,61074.0,0.02]
[1719675605563,0.454599,61075.0,61074.0,0.02]
[1719675614310,0.0779,61075.0,61074.0,0.02]
[1719675614535,0.0779,61075.0,61071.0,0.194924]
[1719675614739,0.001,61075.0,61071.0,0.194924]
[1719675614940,0.0769,61072.0,61071.0,0.194924]
[1719675615296,3.1399087,61072.0,61066.0,0.000924]
[1719675615473,0.0769,61069.0,61066.0,0.000924]
[1719675615711,2.146835,61068.0,61066.0,0.000924]
[1719675617327,2.146835,61068.0,61066.0,0.001924]
[1719675617583,0.0769,61069.0,61068.0,0.02]
[1719675617735,0.0769,61069.0,61068.0,0.2136]
[1719675617736,0.476547,61069.0,61068.0,0.2136]
[1719675618864,0.477547,61069.0,61068.0,0.2136]
[1719675619297,0.435373,61069.0,61068.0,0.2136]
[1719675619631,0.401021,61069.0,61068.0,0.2136]
[1719675622715,0.401021,61069.0,61068.0,0.1936]
[1719675622914,0.401021,61069.0,61068.0,0.2136]
[1719675623922,0.401021,61069.0,61068.0,0.1936]
[1719675624322,0.401021,61069.0,61068.0,0.2136]
[1719675626450,0.401021,61069.0,61068.0,0.1936]
[1719675626656,0.401021,61069.0,61068.0,0.2136]
[1719675633948,0.401021,61069.0,61066.0,0.206724]
[1719675634141,1.021029,61068.0,61066.0,0.206724]
[1719675634662,1.021029,61068.0,61067.0,0.02]
[1719675634866,0.980023,61068.0,61066.0,0.186724]
[1719675635080,1.021029,61068.0,61066.0,0.186724]
[1719675635273,1.021029,61068.0,61067.0,0.02]
[1719675635707,0.28543204,61068.0,61067.0,0.02]
[1719675636970,0.268421,61068.0,61067.0,0.02]
[1719675637175,0.268421,61068.0,61067.0,0.021]
[1719675638403,0.0769,61069.0,61068.0,0.02]
[1719675639027,0.550917,61069.0,61068.0,0.02]
[1719675639688,0.550917,61069.0,61067.0,0.02]
[1719675639887,0.408417,61068.0,61067.0,0.02]
[1719675640621,0.408417,61068.0,61067.0,0.01826561]
[1719675642781,0.408417,61068.0,61067.0,0.01926561]
[1719675645480,0.0779,61069.0,61068.0,0.01826561]
[1719675646083,0.478317,61069.0,61068.0,0.01826561]
[1719675646520,0.328617,61069.0,61068.0,0.01826561]
[1719675646718,0.337617,61069.0,61068.0,0.01826561]
[1719675647152,0.328617,61069.0,61068.0,0.01826561]
[1719675648434,0.337617,61069.0,61068.0,0.01826561]
[1719675649178,0.345617,61069.0,61068.0,0.01826561]
[1719675650656,0.0939,61069.0,61068.0,0.01826561]
[1719675650862,0.353617,61069.0,61068.0,0.01826561]
[1719675651076,0.353617,61069.0,61066.0,0.186724]
[1719675651273,0.0939,61069.0,61068.0,0.01826561]
[1719675651730,0.0939,61069.0,61066.0,0.186724]
[1719675651731,0.353617,61069.0,61066.0,0.186724]
[1719675651936,0.0859,61069.0,61066.0,0.186724]
[1719675652170,0.194117,61068.0,61066.0,0.186724]
[1719675652339,0.194117,61068.0,61067.0,0.01826561]
[1719675653163,0.009,61069.0,61068.0,0.01826561]
[1719675653364,0.0769,61069.0,61068.0,0.01826561]
[1719675655291,0.0939,61069.0,61068.0,0.21426561]
[1719675663096,0.0939,61069.0,61068.0,0.196]
[1719675663295,0.0939,61069.0,61068.0,0.21426561]
[1719675664967,0.0939,61069.0,61068.0,0.37100459]
[1719675664968,0.017,61069.0,61068.0,0.37100459]
[1719675665159,0.017,61069.0,61068.0,0.38100459]
[1719675665373,0.017,61069.0,61068.0,0.50400459]
[1719675665785,0.0939,61069.0,61068.0,0.49400459]
[1719675666001,0.0769,61069.0,61068.0,0.49400459]
[1719675666240,0.01701181,61094.0,61068.0,0.49400459]
[1719675666241,0.01701181,61094.0,61086.0,0.00826561]
[1719675666465,0.0769,61087.0,61084.0,0.20716561]
[1719675666837,0.0769,61085.0,61084.0,0.20716561]
[1719675667037,1.882136,61085.0,61084.0,0.20716561]
[1719675667484,1.947536,61085.0,61073.0,0.6564]
[1719675667692,4.153347,61084.0,61074.0,0.1]
[1719675667893,4.17035881,61084.0,61074.0,0.11826561]
[1719675668097,0.0769,61075.0,61074.0,0.11826561]
[1719675669199,0.0769,61075.0,61074.0,0.12126561]
[1719675669391,0.0779,61075.0,61074.0,0.12126561]
[1719675671068,0.0789,61075.0,61074.0,0.12526561]
[1719675671723,0.0789,61075.0,61074.0,0.107]
[1719675671957,0.0789,61075.0,61074.0,0.12526561]
[1719675672170,0.0769,61075.0,61074.0,0.11826561]
[1719675672383,0.0769,61075.0,61074.0,0.12026561]
[1719675672984,0.0769,61075.0,61074.0,0.12226561]
[1719675674610,0.0769,61075.0,61074.0,0.12026561]
[1719675675627,0.0799,61075.0,61074.0,0.11826561]
[1719675675830,0.0799,61075.0,61074.0,0.13004612]
[1719675676037,0.0819,61075.0,61074.0,0.13004612]
[1719675683301,0.11881021,61075.0,61074.0,0.13004612]
[1719675685825,0.2,61095.0,61074.0,0.13004612]
[1719675685826,0.16694044,61097.0,61077.0,0.05007285]
[1719675686011,0.0769,61078.0,61077.0,0.05007285]
[1719675687308,1.401897,61078.0,61077.0,0.01177238]
[1719675687601,1.58700829,61078.0,61075.0,0.05007285]
[1719675687805,1.500215,61077.0,61075.0,0.05007285]
[1719675688567,1.500215,61077.0,61076.0,0.05007285]
[1719675688791,1.59412819,61077.0,61076.0,0.05007285]
[1719675688970,1.24412819,61077.0,61076.0,0.05007285]
[1719675689493,1.24912819,61077.0,61076.0,0.05007285]
[1719675690248,1.21121819,61077.0,61076.0,0.05007285]
[1719675690713,1.21021819,61077.0,61076.0,0.05007285]
[1719675690903,1.04821819,61077.0,61076.0,0.05007285]
[1719675691110,1.048218,61077.0,61076.0,0.05007285]
[1719675691435,1.044218,61077.0,61076.0,0.05007285]
[1719675691643,0.971318,61077.0,61076.0,0.05007285]
[1719675691853,1.05321648,61077.0,61076.0,0.05107285]
[1719675693244,1.02021848,61077.0,61076.0,0.05107285]
[1719675694477,1.02021779,61077.0,61076.0,0.05107285]
[1719675697656,1.003207,61077.0,61076.0,0.05107285]
[1719675697846,1.02021792,61077.0,61076.0,0.05107285]
[1719675698069,0.94331792,61077.0,61076.0,0.06933846]
[1719675698257,1.02021792,61077.0,61076.0,0.06933846]
[1719675698396,1.02021792,61077.0,61076.0,0.05107285]
[1719675699019,1.02021792,61077.0,61076.0,0.05099897]
[1719675699218,0.99871092,61077.0,61076.0,0.05099897]
[1719675699821,0.99955092,61077.0,61076.0,0.05099897]
[1719675700111,0.10375092,61077.0,61076.0,0.05099897]
[1719675700436,0.08674,61077.0,61076.0,0.08103967]
[1719675700866,1.103542,61077.0,61076.0,0.05099897]
[1719675701044,1.103542,61077.0,61076.0,0.06926458]
[1719675701236,1.103542,61077.0,61076.0,0.05099897]
[1719675701447,0.941542,61077.0,61076.0,0.05099897]
[1719675701655,0.851542,61077.0,61076.0,0.06926458]
[1719675701850,0.88821239,61077.0,61076.0,0.05099897]
[1719675702157,0.88821239,61077.0,61076.0,0.06277406]
[1719675702354,0.9052228,61077.0,61076.0,0.06277406]
[1719675703438,0.9052228,61077.0,61076.0,0.08103967]
[1719675703648,0.5370858,61077.0,61076.0,0.19053967]
[1719675703850,0.5370858,61077.0,61076.0,0.27873967]
[1719675704106,0.52007539,61077.0,61076.0,0.27873967]
[1719675706388,0.42207539,61077.0,61076.0,0.27873967]
[1719675707492,0.12341039,61077.0,61076.0,0.27873967]
[1719675707738,0.12341039,61077.0,61076.0,0.21047509]
[1719675707983,0.12341039,61077.0,61076.0,0.27873967]
[1719675708191,0.00984,61077.0,61076.0,0.27873967]
[1719675708364,0.08274,61077.0,61076.0,0.27773967]
[1719675708517,0.07774,61077.0,61076.0,0.27773967]
[1719675708727,0.08174,61077.0,61076.0,0.27773967]
[1719675709328,0.07774,61077.0,61076.0,0.27773967]
[1719675709949,0.08174,61077.0,61076.0,0.27773967]
[1719675710357,0.07774,61077.0,61076.0,0.27773967]
[1719675710819,0.07774,61077.0,61076.0,0.28373967]
[1719675711017,0.07774,61077.0,61076.0,0.28073967]
[1719675711426,0.07774,61077.0,61076.0,0.28373967]
[1719675711606,0.07774,61077.0,61076.0,0.27773967]
[1719675711934,0.07874,61077.0,61076.0,0.28373967]
[1719675712108,0.07874,61077.0,61076.0,0.27773967]
[1719675712315,0.00184,61077.0,61076.0,0.45335306]
[1719675712490,0.00184,61077.0,61076.0,0.45635306]
[1719675713105,0.00284,61077.0,61076.0,0.46135306]
[1719675713518,0.00284,61077.0,61076.0,0.38308848]
[1719675713788,0.00184,61077.0,61076.0,0.45635306]
[1719675714005,0.00284,61077.0,61076.0,0.46235306]
[1719675715135,0.00184,61077.0,61076.0,0.45935306]
[1719675715287,0.00284,61077.0,61076.0,0.46535306]
[1719675715854,0.00284,61077.0,61076.0,0.45935306]
[1719675716056,0.00384,61077.0,61076.0,0.58835306]
[1719675716255,0.00384,61077.0,61076.0,0.78830754]
[1719675716874,0.00084,61077.0,61076.0,0.77630754]
[1719675717109,0.00184,61077.0,61076.0,0.78230754]
[1719675718066,0.00284,61077.0,61076.0,0.79230754]
[1719675721703,0.00284,61077.0,61076.0,0.71404296]
[1719675721935,0.00284,61077.0,61076.0,0.79230754]
[1719675725666,0.00284,61077.0,61076.0,0.77903313]
[1719675731631,0.00284,61077.0,61076.0,0.78903313]
[1719675731806,0.00284,61077.0,61076.0,0.71076855]
[1719675732211,0.07974,61077.0,61076.0,0.71076855]
[1719675732420,0.07974,61077.0,61076.0,0.77903313]
[1719675732620,0.07974,61077.0,61076.0,0.78903313]
[1719675733307,0.07974,61077.0,61076.0,0.77903313]
[1719675737356,0.05308452,61111.0,61091.0,0.16392622]
[1719675737556,0.56501044,61092.0,61091.0,0.16392622]
[1719675737764,0.0769,61092.0,61091.0,0.16392622]
[1719675739175,0.0869,61092.0,61091.0,0.16492622]
[1719675739359,0.0869,61092.0,61091.0,0.16592622]
[1719675739848,0.0869,61092.0,61091.0,0.16492622]
[1719675740331,0.0939,61092.0,61091.0,0.16592622]
[1719675740819,1.76925,61092.0,61091.0,0.16592622]
[1719675741031,1.67535,61092.0,61091.0,0.16592622]
[1719675741264,1.52021629,61092.0,61091.0,0.16592622]
[1719675741695,1.00519729,61092.0,61091.0,0.16592622]
[1719675742634,1.00519743,61092.0,61091.0,0.16592622]
[1719675743309,1.00519743,61092.0,61091.0,0.002]
[1719675743532,1.00519743,61092.0,61091.0,0.16592622]
[1719675743760,1.00519743,61092.0,61091.0,0.1776607]
[1719675744485,1.00519743,61092.0,61091.0,0.01373448]
[1719675744732,1.00519743,61092.0,61091.0,0.1776607]
[1719675744950,1.00519742,61092.0,61091.0,0.1776607]
[1719675745171,1.00519742,61092.0,61091.0,0.16592622]
[1719675745397,1.00519743,61092.0,61091.0,0.16592622]
[1719675745627,1.09983904,61092.0,61091.0,0.16592622]
[1719675747036,1.00519743,61092.0,61091.0,0.16592622]
[1719675747288,1.00513917,61092.0,61091.0,0.16592622]
[1719675748740,1.00513877,61092.0,61091.0,0.16592622]
[1719675751926,1.00513876,61092.0,61091.0,0.16592622]
[1719675753401,1.00513876,61092.0,61091.0,0.16436535]
[1719675754409,1.00513876,61092.0,61081.0,0.04999897]
[1719675754410,1.00513876,61092.0,61082.0,0.04999897]
[1719675754649,0.0769,61082.0,61081.0,0.14999897]
[1719675754911,0.917717,61082.0,61081.0,0.14999897]
[1719675755160,0.0769,61082.0,61081.0,0.14999897]
[1719675755810,0.917656,61082.0,61081.0,0.14999897]
[1719675756569,0.717596,61082.0,61081.0,0.14999897]
[1719675756792,0.717596,61082.0,61081.0,0.1]
[1719675756997,0.652057,61082.0,61081.0,0.16826458]
[1719675757610,0.652057,61082.0,61081.0,0.14999897]
[1719675758516,0.652057,61082.0,61081.0,0.17226458]
[1719675758929,0.652057,61082.0,61081.0,0.17526458]
[1719675759739,0.652057,61082.0,61081.0,0.17226458]
[1719675759942,0.652057,61082.0,61081.0,0.15399897]
[1719675760155,0.653057,61082.0,61081.0,0.14999897]
[1719675760369,0.653057,61082.0,61081.0,0.16826458]
[1719675760570,0.653057,61082.0,61081.0,0.1]
[1719675761187,0.0779,61082.0,61081.0,0.1]
[1719675761389,0.0779,61082.0,61081.0,0.16826458]
[1719675761948,0.719657,61082.0,61081.0,0.16826458]
[1719675762161,0.0789,61082.0,61081.0,0.16826458]
[1719675762362,0.719657,61082.0,61081.0,0.16826458]
[1719675762939,0.002,61082.0,61081.0,0.27706458]
[1719675763140,0.0789,61082.0,61081.0,0.27706458]
[1719675765570,0.0789,61082.0,61081.0,0.27798858]
[1719675765747,0.0789,61082.0,61081.0,0.36298858]
[1719675766770,0.0789,61082.0,61081.0,0.294724]
[1719675766969,0.0789,61082.0,61081.0,0.36298858]
[1719675767751,0.0789,61082.0,61081.0,0.294724]
[1719675767957,0.0789,61082.0,61081.0,0.36298858]
[1719675770226,0.0789,61082.0,61081.0,0.45706298]
[1719675770365,0.0789,61082.0,61081.0,0.53532756]
[1719675770567,0.0789,61082.0,61081.0,0.45706298]
[1719675770772,0.0779,61082.0,61081.0,0.45706298]
[1719675771003,0.0779,61082.0,61081.0,0.52532756]
[1719675771169,0.0789,61082.0,61081.0,0.52532756]